fUSD/lending_fUSD_20240318
["ID","MTS","AMOUNT","RATE_DAILY","PERIOD"]
[319429355,1710736263668,-500.0,0.00030684,4]
[319429356,1710736263677,-500.0,0.00030684,4]
[319429357,1710736263686,-500.0,0.00030684,4]
[319429358,1710736263696,-500.0,0.00030684,4]
[319429359,1710736263705,-356.89976474,0.00030684,4]
[319429360,1710736263716,-500.0,0.00030684,4]
[319429361,1710736263726,-500.0,0.00030684,4]
[319429362,1710736263738,-500.0,0.00030684,4]
[319429363,1710736263748,-500.0,0.00030684,4]
[319429364,1710736263757,-500.0,0.00030684,4]
[319429365,1710736263766,-1123.76,0.00030684,4]
[319429366,1710736263777,-600.34,0.00030684,4]
[319429367,1710736263787,-710.22,0.00030684,4]
[319429368,1710736263797,-500.0,0.00030684,4]
[319429369,1710736263807,-500.0,0.00030684,4]
[319429370,1710736263817,-500.0,0.00030684,4]
[319429371,1710736263828,-500.0,0.00030684,4]
[319429372,1710736263838,-500.0,0.00030684,4]
[319429373,1710736263847,-500.0,0.00030684,4]
[319429374,1710736263856,-500.0,0.00030684,4]
[319429375,1710736263866,-500.0,0.00030684,4]
[319429376,1710736263875,-1438.95,0.00030684,4]
[319429377,1710736263885,-500.0,0.00030684,4]
[319429378,1710736263894,-1027.19,0.00030684,4]
[319429379,1710736263903,-500.0,0.00030684,4]
[319429380,1710736263912,-500.0,0.00030684,4]
[319429381,1710736263921,-500.0,0.00030684,4]
[319429382,1710736263930,-624.55,0.00030684,4]
[319429383,1710736263939,-500.0,0.00030684,4]
[319429384,1710736263949,-500.0,0.00030684,4]
[319429385,1710736263958,-500.0,0.00030684,4]
[319429386,1710736263967,-500.0,0.00030684,4]
[319429387,1710736263976,-500.0,0.00030684,4]
[319429388,1710736263985,-500.0,0.00030684,4]
[319429389,1710736263994,-595.77,0.00030684,4]
[319429390,1710736264004,-1826.25,0.00030684,4]
[319429391,1710736264013,-183.62650273,0.00030684,4]
[319429392,1710736264022,-500.0,0.00030684,4]
[319429393,1710736264032,-222.6047248,0.00030684,4]
[319429394,1710736264041,-500.0,0.00030684,4]
[319429395,1710736264051,-500.0,0.00030684,4]
[319429396,1710736264061,-294.37105732,0.00030684,4]
[319429397,1710736264070,-500.0,0.00030684,4]
[319429398,1710736264079,-500.0,0.00030684,4]
[319429399,1710736264089,-931.82,0.00030684,4]
[319429400,1710736264098,-500.0,0.00030684,4]
[319429401,1710736264107,-2156.89,0.00030684,4]
[319429402,1710736264117,-500.0,0.00030684,4]
[319429403,1710736264126,-500.0,0.00030684,4]
[319429404,1710736264136,-626.3,0.00030684,4]
[319429405,1710736264145,-500.0,0.00030684,4]
[319429406,1710736264155,-500.0,0.00030684,4]
[319429407,1710736264164,-500.0,0.00030684,4]
[319429408,1710736264173,-500.0,0.00030684,4]
[319429409,1710736264182,-500.0,0.00030684,4]
[319429410,1710736264191,-508.46108399,0.00030684,4]
[319429411,1710736264200,-500.0,0.00030684,4]
[319429412,1710736264210,-500.0,0.00030684,4]
[319429413,1710736264220,-500.0,0.00030684,4]
[319429414,1710736264229,-350.39711232,0.00030684,4]
[319429415,1710736264238,-500.0,0.00030684,4]
[319429416,1710736264248,-500.0,0.00030684,4]
[319429417,1710736264258,-500.0,0.00030684,4]
[319429418,1710736264267,-2005.2,0.00030684,4]
[319429419,1710736264277,-500.0,0.00030684,4]
[319429420,1710736264287,-500.0,0.00030684,4]
[319429421,1710736264297,-500.0,0.00030684,4]
[319429422,1710736264307,-500.0,0.00030684,4]
[319429423,1710736264316,-501.28231968,0.00030684,4]
[319429424,1710736264326,-500.0,0.00030684,4]
[319429425,1710736264335,-500.0,0.00030684,4]
[319429426,1710736264345,-2463.3,0.00030684,4]
[319429427,1710736264354,-500.0,0.00030684,4]
[319429428,1710736264364,-500.0,0.00030684,4]
[319429429,1710736264373,-500.0,0.00030684,4]
[319429430,1710736264383,-461.48547302,0.00030684,4]
[319429431,1710736264392,-500.0,0.00030684,4]
[319429432,1710736264401,-500.0,0.00030684,4]
[319429433,1710736264410,-500.0,0.00030684,4]
[319429434,1710736264419,-2094.29,0.00030684,4]
[319429435,1710736264428,-911.56,0.00030684,4]
[319429436,1710736264437,-500.0,0.00030684,4]
[319429437,1710736264447,-2639.58,0.00030684,4]
[319429438,1710736264455,-500.0,0.00030684,4]
[319429439,1710736264465,-500.0,0.00030684,4]
[319429440,1710736264474,-500.0,0.00030684,4]
[319429441,1710736264483,-500.0,0.00030684,4]
[319429442,1710736264492,-500.0,0.00030684,4]
[319429443,1710736264501,-500.0,0.00030684,4]
[319429444,1710736264510,-500.0,0.00030684,4]
[319429445,1710736264519,-500.0,0.00030684,4]
[319429446,1710736264528,-424.42716839,0.00030684,2]
[319429447,1710736264537,-523.09,0.00030684,4]
[319429448,1710736264547,-500.0,0.00030684,4]
[319429449,1710736264559,-500.0,0.00030684,4]
[319429450,1710736264568,-3465.75,0.00030684,4]
[319429451,1710736264578,-500.0,0.00030684,4]
[319429452,1710736264587,-500.0,0.00030684,4]
[319429453,1710736264596,-3439.16,0.00030684,4]
[319429454,1710736264605,-1239.79,0.00030684,4]
[319429455,1710736264614,-500.0,0.00030684,4]
[319429456,1710736264623,-865.02,0.00030684,4]
[319429457,1710736264633,-500.0,0.00030684,4]
[319429458,1710736264642,-500.0,0.00030684,4]
[319429459,1710736264651,-770.0,0.00030684,4]
[319429460,1710736264660,-500.0,0.00030684,4]
[319429461,1710736264669,-1050.75,0.00030684,4]
[319429462,1710736264678,-500.0,0.00030684,4]
[319429463,1710736264688,-639.93,0.00030684,4]
[319429464,1710736264697,-500.0,0.00030684,4]
[319429465,1710736264706,-3922.62,0.00030684,4]
[319429466,1710736264715,-500.0,0.00030684,4]
[319429467,1710736264725,-500.0,0.00030684,4]
[319429468,1710736264734,-500.0,0.00030684,4]
[319429469,1710736264746,-500.0,0.00030684,4]
[319429470,1710736264755,-500.0,0.00030684,4]
[319429471,1710736264764,-953.43,0.00030684,4]
[319429472,1710736264774,-634.6469518,0.00030684,4]
[319429473,1710736264783,-611.87,0.00030684,4]
[319429474,1710736264792,-500.0,0.00030684,4]
[319429475,1710736264801,-798.65,0.00030684,4]
[319429476,1710736264810,-500.0,0.00030684,4]
[319429477,1710736264820,-258.43113327,0.00030684,4]
[319429478,1710736264829,-2710.57,0.00030684,4]
[319429479,1710736264838,-500.0,0.00030684,4]
[319429480,1710736264848,-509.50200418,0.00030684,4]
[319429481,1710736264857,-500.0,0.00030684,4]
[319429482,1710736264865,-500.0,0.00030684,4]
[319429483,1710736264875,-2948.74,0.00030684,4]
[319429484,1710736264884,-500.0,0.00030684,4]
[319429485,1710736264893,-500.0,0.00030684,4]
[319429486,1710736264902,-500.0,0.00030684,4]
[319429487,1710736264911,-539.71,0.00030684,4]
[319429488,1710736264921,-500.0,0.00030684,4]
[319429489,1710736264930,-500.0,0.00030684,4]
[319429490,1710736264939,-500.0,0.00030684,4]
[319429491,1710736264948,-500.0,0.00030684,4]
[319429492,1710736264957,-197.91919022,0.00030684,4]
[319429493,1710736264968,-500.0,0.00030684,4]
[319429494,1710736264977,-500.0,0.00030684,4]
[319429495,1710736264986,-500.0,0.00030684,4]
[319429496,1710736264995,-500.0,0.00030684,4]
[319429497,1710736265004,-500.0,0.00030684,4]
[319429498,1710736265014,-1200.43,0.00030684,4]
[319429499,1710736265023,-500.0,0.00030684,4]
[319429500,1710736265033,-500.0,0.00030684,4]
[319429501,1710736265043,-500.0,0.00030684,4]
[319429502,1710736265053,-500.0,0.00030684,4]
[319429503,1710736265063,-500.0,0.00030684,4]
[319429504,1710736265073,-500.0,0.00030684,4]
[319429505,1710736265083,-500.0,0.00030684,4]
[319429506,1710736265093,-500.0,0.00030684,4]
[319429507,1710736265105,-593.8,0.00030684,4]
[319429508,1710736265115,-646.93,0.00030684,4]
[319429509,1710736265125,-3040.38,0.00030684,4]
[319429510,1710736265135,-912.86,0.00030684,4]
[319429511,1710736265145,-501.39821634,0.00030684,4]
[319429512,1710736265156,-500.0,0.00030684,4]
[319429513,1710736265167,-521.56,0.00030684,4]
[319429514,1710736265177,-365.17878825,0.00030684,4]
[319429515,1710736265187,-500.0,0.00030684,4]
[319429516,1710736265197,-500.0,0.00030684,4]
[319429517,1710736265206,-2075.71,0.00030684,4]
[319429518,1710736265218,-500.0,0.00030684,4]
[319429519,1710736265228,-1026.81,0.00030684,4]
[319429520,1710736265238,-338.96811899,0.00030684,4]
[319429521,1710736265248,-500.0,0.00030684,4]
[319429522,1710736265258,-500.0,0.00030684,4]
[319429523,1710736265268,-788.56,0.00030684,4]
[319429524,1710736265438,-500.0,0.00030684,4]
[319429525,1710736265448,-500.0,0.00030684,4]
[319429526,1710736265458,-500.0,0.00030684,4]
[319429527,1710736265469,-615.18,0.00030684,4]
[319429528,1710736265479,-500.0,0.00030684,4]
[319429529,1710736265489,-500.0,0.00030684,4]
[319429530,1710736265499,-500.0,0.00030684,4]
[319429531,1710736265508,-500.0,0.00030684,4]
[319429532,1710736265518,-500.0,0.00030684,4]
[319429533,1710736265527,-1506.09,0.00030684,4]
[319429534,1710736265537,-500.0,0.00030684,4]
[319429535,1710736265547,-307.68595204,0.00030684,4]
[319429536,1710736265556,-500.0,0.00030684,4]
[319429537,1710736265566,-503.63866613,0.00030684,4]
[319429538,1710736265577,-500.0,0.00030684,4]
[319429539,1710736265587,-500.0,0.00030684,4]
[319429540,1710736265596,-500.0,0.00030684,4]
[319429541,1710736265606,-500.0,0.00030684,4]
[319429542,1710736265615,-504.94861444,0.00030684,4]
[319429543,1710736265625,-500.0,0.00030684,4]
[319429544,1710736265635,-1442.43,0.00030684,4]
[319429545,1710736265645,-500.0,0.00030684,4]
[319429546,1710736265655,-4584.29,0.00030684,4]
[319429547,1710736265664,-526.38752469,0.00030684,4]
[319429548,1710736265674,-1419.83,0.00030684,4]
[319429549,1710736265683,-1416.16,0.00030684,4]
[319429550,1710736265693,-500.0,0.00030684,4]
[319429551,1710736265702,-1501.08,0.00030684,4]
[319429552,1710736265711,-500.0,0.00030684,4]
[319429553,1710736265725,-500.0,0.00030684,4]
[319429554,1710736265738,-500.0,0.00030684,4]
[319429555,1710736265748,-500.0,0.00030684,4]
[319429556,1710736265757,-1326.91,0.00030684,4]
[319429557,1710736265767,-500.0,0.00030684,4]
[319429558,1710736265777,-188.98525126,0.00030684,4]
[319429559,1710736265787,-500.0,0.00030684,4]
[319429560,1710736265797,-500.0,0.00030684,4]
[319429561,1710736265808,-500.0,0.00030684,4]
[319429562,1710736265818,-1157.88,0.00030684,4]
[319429563,1710736265829,-500.0,0.00030684,4]
[319429564,1710736265839,-500.0,0.00030684,4]
[319429565,1710736265849,-522.83,0.00030684,4]
[319429566,1710736265860,-884.27,0.00030684,4]
[319429567,1710736265870,-1901.89,0.00030684,4]
[319429568,1710736265880,-718.57,0.00030684,4]
[319429569,1710736265890,-500.0,0.00030684,4]
[319429570,1710736265901,-500.0,0.00030684,4]
[319429571,1710736265911,-500.0,0.00030684,4]
[319429572,1710736265921,-500.0,0.00030684,4]
[319429573,1710736265931,-500.0,0.00030684,4]
[319429574,1710736265941,-1481.56,0.00030684,4]
[319429575,1710736265951,-626.44,0.00030684,4]
[319429576,1710736265962,-500.0,0.00030684,4]
[319429577,1710736265977,-820.19,0.00030684,4]
[319429578,1710736265987,-616.04,0.00030684,4]
[319429579,1710736265997,-661.6,0.00030684,4]
[319429580,1710736266007,-500.0,0.00030684,4]
[319429581,1710736266017,-807.78,0.00030684,4]
[319429582,1710736266027,-576.56,0.00030684,4]
[319429583,1710736266037,-500.0,0.00030684,4]
[319429584,1710736266047,-500.0,0.00030684,4]
[319429585,1710736266057,-1258.08,0.00030684,4]
[319429586,1710736266067,-500.0,0.00030684,4]
[319429587,1710736266078,-500.0,0.00030684,4]
[319429588,1710736266088,-500.0,0.00030684,4]
[319429589,1710736266099,-922.75,0.00030684,4]
[319429590,1710736266110,-500.0,0.00030684,4]
[319429591,1710736266121,-500.0,0.00030684,4]
[319429592,1710736266131,-1859.01,0.00030684,4]
[319429593,1710736266142,-500.0,0.00030684,4]
[319429594,1710736266153,-998.14,0.00030684,4]
[319429595,1710736266164,-500.0,0.00030684,4]
[319429596,1710736266175,-712.78,0.00030684,4]
[319429597,1710736266186,-3134.02,0.00030684,4]
[319429598,1710736266196,-720.74,0.00030684,4]
[319429599,1710736266207,-500.0,0.00030684,4]
[319429600,1710736266224,-835.55,0.00030684,4]
[319429601,1710736266235,-500.0,0.00030684,4]
[319429602,1710736266245,-794.41,0.00030684,4]
[319429603,1710736266255,-3743.94,0.00030684,4]
[319429604,1710736266265,-500.0,0.00030684,4]
[319429605,1710736266275,-642.05,0.00030684,4]
[319429606,1710736266286,-500.0,0.00030684,4]
[319429607,1710736266296,-1113.65,0.00030684,4]
[319429608,1710736266306,-589.6,0.00030684,4]
[319429609,1710736266315,-500.0,0.00030684,4]
[319429610,1710736266325,-524.2953334,0.00030684,4]
[319429611,1710736266335,-500.0,0.00030684,4]
[319429612,1710736266346,-633.04,0.00030684,4]
[319429613,1710736266356,-512.73,0.00030684,4]
[319429614,1710736266366,-774.64,0.00030684,4]
[319429615,1710736266375,-1524.04,0.00030684,4]
[319429616,1710736266385,-500.0,0.00030684,4]
[319429617,1710736266395,-1898.65,0.00030684,4]
[319429618,1710736266405,-1586.83,0.00030684,4]
[319429619,1710736266414,-500.0,0.00030684,4]
[319429620,1710736266424,-500.0,0.00030684,4]
[319429621,1710736266434,-500.0,0.00030684,4]
[319429622,1710736266444,-833.34,0.00030684,4]
[319429623,1710736266453,-1329.2,0.00030684,4]
[319429624,1710736266463,-500.0,0.00030684,4]
[319429625,1710736266477,-501.93,0.00030684,4]
[319429626,1710736266487,-500.0,0.00030684,4]
[319429627,1710736266498,-574.74,0.00030684,4]
[319429628,1710736266508,-500.0,0.00030684,4]
[319429629,1710736266518,-500.0,0.00030684,4]
[319429630,1710736266528,-500.0,0.00030684,4]
[319429631,1710736266538,-899.79,0.00030684,4]
[319429632,1710736266547,-500.0,0.00030684,4]
[319429633,1710736266557,-501.52188621,0.00030684,4]
[319429634,1710736266566,-836.63,0.00030684,4]
[319429635,1710736266576,-565.06456761,0.00030684,4]
[319429636,1710736266585,-663.74,0.00030684,4]
[319429637,1710736266594,-1143.03,0.00030684,4]
[319429638,1710736266604,-500.0,0.00030684,4]
[319429639,1710736266614,-500.0,0.00030684,4]
[319429640,1710736266623,-500.0,0.00030684,4]
[319429641,1710736266633,-1917.2,0.00030684,4]
[319429642,1710736266645,-501.10801965,0.00030684,4]
[319429643,1710736266655,-1716.33,0.00030684,4]
[319429644,1710736266665,-1304.54,0.00030684,4]
[319429645,1710736266674,-500.0,0.00030684,4]
[319429646,1710736266684,-705.47,0.00030684,4]
[319429647,1710736266693,-500.0,0.00030684,4]
[319429648,1710736266703,-794.56,0.00030684,4]
[319429649,1710736266712,-500.0,0.00030684,4]
[319429650,1710736266725,-500.0,0.00030684,4]
[319429651,1710736266734,-500.0,0.00030684,4]
[319429652,1710736266748,-508.78712883,0.00030684,4]
[319429653,1710736266758,-500.0,0.00030684,4]
[319429654,1710736266766,-500.0,0.00030684,4]
[319429655,1710736266775,-500.0,0.00030684,4]
[319429656,1710736266785,-2333.6,0.00030684,4]
[319429657,1710736266794,-758.7,0.00030684,4]
[319429658,1710736266803,-588.98,0.00030684,4]
[319429659,1710736266812,-560.65,0.00030684,4]
[319429660,1710736266822,-1061.17,0.00030684,4]
[319429661,1710736266831,-586.69325563,0.00030684,4]
[319429662,1710736266841,-500.0,0.00030684,4]
[319429663,1710736266850,-500.0,0.00030684,4]
[319429664,1710736266860,-1095.12,0.00030684,4]
[319429665,1710736266870,-500.0,0.00030684,4]
[319429666,1710736266879,-500.0,0.00030684,4]
[319429667,1710736266888,-2145.95,0.00030684,4]
[319429668,1710736266897,-500.0,0.00030684,4]
[319429669,1710736266907,-1627.27,0.00030684,4]
[319429670,1710736266916,-500.0,0.00030684,4]
[319429671,1710736266925,-500.0,0.00030684,4]
[319429672,1710736266935,-500.0,0.00030684,4]
[319429673,1710736266944,-500.0,0.00030684,4]
[319429674,1710736266953,-500.0,0.00030684,2]
[319429675,1710736266962,-2012.26,0.00030684,4]
[319429676,1710736266977,-1352.76,0.00030684,4]
[319429677,1710736266986,-537.95,0.00030684,4]
[319429678,1710736266995,-500.0,0.00030684,4]
[319429679,1710736267005,-500.0,0.00030684,4]
[319429680,1710736267015,-2747.25,0.00030684,4]
[319429681,1710736267024,-500.0,0.00030684,4]
[319429682,1710736267033,-247.2225162,0.00030684,4]
[319429683,1710736267042,-606.33,0.00030684,4]
[319429684,1710736267052,-500.0,0.00030684,4]
[319429685,1710736267062,-500.0,0.00030684,4]
[319429686,1710736267071,-500.0,0.00030684,4]
[319429687,1710736267080,-500.0,0.00030684,4]
[319429688,1710736267089,-500.0,0.00030684,4]
[319429689,1710736267099,-500.0,0.00030684,4]
[319429690,1710736267108,-500.0,0.00030684,4]
[319429691,1710736267118,-500.0,0.00030684,4]
[319429692,1710736267127,-500.0,0.00030684,4]
[319429693,1710736267137,-554.01,0.00030684,4]
[319429694,1710736267147,-807.58,0.00030684,4]
[319429695,1710736267156,-302.83040256,0.00030684,4]
[319429696,1710736267166,-2956.82,0.00030684,4]
[319429697,1710736267176,-500.0,0.00030684,4]
[319429698,1710736267185,-500.0,0.00030684,4]
[319429699,1710736267195,-500.0,0.00030684,4]
[319429700,1710736267205,-1607.18,0.00030684,4]
[319429701,1710736267218,-500.0,0.00030684,4]
[319429702,1710736267228,-500.0,0.00030684,4]
[319429703,1710736267238,-1221.54,0.00030684,4]
[319429704,1710736267247,-500.0,0.00030684,4]
[319429705,1710736267256,-501.85351784,0.00030684,4]
[319429706,1710736267265,-1838.23,0.00030684,4]
[319429707,1710736267275,-1026.01,0.00030684,4]
[319429708,1710736267284,-500.0,0.00030684,4]
[319429709,1710736267293,-500.0,0.00030684,4]
[319429710,1710736267303,-842.1,0.00030684,4]
[319429711,1710736267313,-512.31,0.00030684,4]
[319429712,1710736267322,-500.0,0.00030684,4]
[319429713,1710736267331,-831.26,0.00030684,4]
[319429714,1710736267340,-1157.32,0.00030684,4]
[319429715,1710736267350,-1448.23,0.00030684,4]
[319429716,1710736267359,-500.0,0.00030684,4]
[319429717,1710736267369,-556.38,0.00030684,4]
[319429718,1710736267378,-500.0,0.00030684,4]
[319429719,1710736267388,-1287.24,0.00030684,4]
[319429720,1710736267397,-500.0,0.00030684,4]
[319429721,1710736267406,-1436.69,0.00030684,4]
[319429722,1710736267415,-1335.54,0.00030684,4]
[319429723,1710736267424,-500.0,0.00030684,4]
[319429724,1710736267434,-1968.76,0.00030684,4]
[319429725,1710736267443,-508.57049442,0.00030684,4]
[319429726,1710736267452,-799.94,0.00030684,4]
[319429727,1710736267461,-1597.09,0.00030684,4]
[319429728,1710736267473,-500.0,0.00030684,4]
[319429729,1710736267482,-500.0,0.00030684,4]
[319429730,1710736267491,-500.0,0.00030684,4]
[319429731,1710736267500,-632.08,0.00030684,4]
[319429732,1710736267509,-681.46,0.00030684,4]
[319429733,1710736267519,-500.0,0.00030684,4]
[319429734,1710736267528,-1138.91,0.00030684,4]
[319429735,1710736267537,-1427.1,0.00030684,4]
[319429736,1710736267546,-809.76,0.00030684,4]
[319429737,1710736267556,-500.0,0.00030684,4]
[319429738,1710736267565,-1229.86,0.00030684,4]
[319429739,1710736267575,-691.68,0.00030684,4]
[319429740,1710736267584,-500.0,0.00030684,4]
[319429741,1710736267592,-500.0,0.00030684,4]
[319429742,1710736267602,-2635.68,0.00030684,4]
[319429743,1710736267611,-500.0,0.00030684,4]
[319429744,1710736267621,-500.0,0.00030684,4]
[319429745,1710736267629,-500.0,0.00030684,4]
[319429746,1710736267639,-500.0,0.00030684,4]
[319429747,1710736267648,-788.73,0.00030684,4]
[319429748,1710736267657,-500.0,0.00030684,4]
[319429749,1710736267666,-500.0,0.00030684,4]
[319429750,1710736267675,-500.0,0.00030684,4]
[319429751,1710736267684,-500.0,0.00030684,4]
[319429752,1710736267693,-500.0,0.00030684,4]
[319429753,1710736267702,-500.0,0.00030684,4]
[319429754,1710736267712,-523.73183079,0.00030684,4]
[319429755,1710736267724,-500.0,0.00030684,4]
[319429756,1710736267737,-500.0,0.00030684,4]
[319429757,1710736267746,-2115.38,0.00030684,4]
[319429758,1710736267755,-500.0,0.00030684,4]
[319429759,1710736267764,-503.53831777,0.00030684,4]
[319429760,1710736267774,-1520.72,0.00030684,4]
[319429761,1710736267783,-1607.09,0.00030684,4]
[319429762,1710736267793,-380.66587596,0.00030684,4]
[319429763,1710736267857,-500.0,0.00030684,4]
[319429764,1710736267867,-500.0,0.00030684,4]
[319429765,1710736267877,-1832.55,0.00030684,4]
[319429766,1710736267886,-500.0,0.00030684,4]
[319429767,1710736267896,-824.57,0.00030684,4]
[319429768,1710736267906,-500.0,0.00030684,4]
[319429769,1710736267915,-1581.71,0.00030684,4]
[319429770,1710736267925,-500.0,0.00030684,4]
[319429771,1710736267934,-583.42,0.00030684,4]
[319429772,1710736267943,-1212.73,0.00030684,4]
[319429773,1710736267953,-500.0,0.00030684,4]
[319429774,1710736267962,-500.0,0.00030684,4]
[319429775,1710736267980,-1404.3,0.00030684,4]
[319429776,1710736267990,-24025.87,0.00030684,4]
[319429777,1710736268000,-500.0,0.00030684,4]
[319429778,1710736268009,-500.0,0.00030684,4]
[319429779,1710736268019,-206.04290632,0.00030684,4]
[319429780,1710736268029,-2851.25,0.00030684,4]
[319429781,1710736268039,-2546.72,0.00030684,4]
[319429782,1710736268048,-500.0,0.00030684,4]
[319429783,1710736268058,-2287.3,0.00030684,4]
[319429784,1710736268067,-500.0,0.00030684,4]
[319429785,1710736268077,-647.58,0.00030684,4]
[319429786,1710736268088,-500.0,0.00030684,4]
[319429787,1710736268097,-647.09946646,0.00030684,4]
[319429788,1710736268107,-585.33,0.00030684,4]
[319429789,1710736268118,-1053.54,0.00030684,4]
[319429790,1710736268128,-500.0,0.00030684,4]
[319429791,1710736268138,-1503.64,0.00030684,4]
[319429792,1710736268148,-500.0,0.00030684,4]
[319429793,1710736268158,-1183.08,0.00030684,4]
[319429794,1710736268168,-500.0,0.00030684,4]
[319429795,1710736268178,-500.0,0.00030684,4]
[319429796,1710736268187,-554.14,0.00030684,4]
[319429797,1710736268197,-2122.6,0.00030684,4]
[319429798,1710736268207,-500.0,0.00030684,4]
[319429799,1710736268222,-500.0,0.00030684,4]
[319429800,1710736268231,-255.45314192,0.00030684,4]
[319429801,1710736268241,-500.0,0.00030684,4]
[319429802,1710736268251,-500.0,0.00030684,4]
[319429803,1710736268260,-513.85,0.00030684,4]
[319429804,1710736268270,-500.0,0.00030684,4]
[319429805,1710736268280,-352.77671849,0.00030684,4]
[319429806,1710736268290,-492.96644318,0.00030684,4]
[319429807,1710736268299,-500.0,0.00030684,4]
[319429808,1710736268309,-1355.29,0.00030684,4]
[319429809,1710736268318,-1088.26,0.00030684,4]
[319429810,1710736268328,-1081.54,0.00030684,4]
[319429811,1710736268337,-500.0,0.00030684,4]
[319429812,1710736268347,-602.31,0.00030684,4]
[319429813,1710736268356,-500.0,0.00030684,4]
[319429814,1710736268366,-16800.01,0.00030684,4]
[319429815,1710736268376,-500.0,0.00030684,4]
[319429816,1710736268386,-500.0,0.00030684,4]
[319429817,1710736268396,-732.67,0.00030684,4]
[319429818,1710736268405,-500.0,0.00030684,4]
[319429819,1710736268415,-500.0,0.00030684,4]
[319429820,1710736268426,-500.0,0.00030684,4]
[319429821,1710736268435,-500.0,0.00030684,4]
[319429822,1710736268445,-500.0,0.00030684,4]
[319429823,1710736268455,-500.0,0.00030684,4]
[319429824,1710736268464,-500.0,0.00030684,4]
[319429825,1710736268481,-500.0,0.00030684,4]
[319429826,1710736268490,-500.0,0.00030684,4]
[319429827,1710736268500,-500.0,0.00030684,4]
[319429828,1710736268510,-500.0,0.00030684,4]
[319429829,1710736268520,-500.0,0.00030684,4]
[319429830,1710736268529,-500.0,0.00030684,4]
[319429831,1710736268540,-500.0,0.00030684,4]
[319429832,1710736268550,-500.0,0.00030684,4]
[319429833,1710736268560,-742.96,0.00030684,4]
[319429834,1710736268570,-875.28,0.00030684,4]
[319429835,1710736268580,-500.0,0.00030684,4]
[319429836,1710736268590,-316.95703871,0.00030684,4]
[319429837,1710736268600,-278.48958984,0.00030684,4]
[319429838,1710736268610,-500.0,0.00030684,4]
[319429839,1710736268620,-500.0,0.00030684,4]
[319429840,1710736268631,-500.0,0.00030684,4]
[319429841,1710736268641,-500.0,0.00030684,4]
[319429842,1710736268652,-1382.05,0.00030684,4]
[319429843,1710736268663,-578.55116793,0.00030684,4]
[319429844,1710736268673,-500.0,0.00030684,4]
[319429845,1710736268684,-500.0,0.00030684,4]
[319429846,1710736268695,-9617.26,0.00030684,4]
[319429847,1710736268706,-500.0,0.00030684,4]
[319429848,1710736268716,-632.75,0.00030684,4]
[319429849,1710736268731,-500.0,0.00030684,4]
[319429850,1710736268742,-500.0,0.00030684,4]
[319429851,1710736268753,-523.3,0.00030684,4]
[319429852,1710736268762,-500.0,0.00030684,4]
[319429853,1710736268773,-500.0,0.00030684,4]
[319429854,1710736268783,-9955.07,0.00030684,4]